lending/lending_fUSD_20260104
["ID","MTS","AMOUNT","RATE_DAILY","PERIOD"]
[400439892,1767554753858,-793.96186782,0.00014685,2]
[400439893,1767554753894,-793.96186782,0.00014685,2]
[400439894,1767554753931,-793.96186782,0.00014685,2]
[400439895,1767554753970,-795.76632662,0.00014685,2]
[400439896,1767554754087,-468.85866856,0.00014685,2]
[400439899,1767554760382,-326.90765806,0.00014685,2]
[400439900,1767554760417,-795.76632662,0.00014685,2]
[400439901,1767554760452,-795.76632662,0.00014685,2]
[400439902,1767554760486,-795.76632662,0.00014685,2]
[400439903,1767554760520,-795.76632662,0.00014685,2]
[400439904,1767554760556,-795.76632662,0.00014685,2]
[400439905,1767554760590,-592.76509106,0.00014685,2]
[400439906,1767554760755,-203.00123556,0.00014685,2]
[400439907,1767554760790,-795.76632662,0.00014685,2]
[400439908,1767554760826,-795.76632662,0.00014685,2]
[400439909,1767554760861,-795.76632662,0.00014685,2]
[400439910,1767554760896,-795.76632662,0.00014685,2]
[400439911,1767554760935,-795.76632662,0.00014685,2]
[400439912,1767554760969,-795.76632662,0.00014685,2]
[400439913,1767554761052,-795.76632662,0.00014685,2]
[400439914,1767554761086,-795.76632662,0.00014685,2]
[400439915,1767554761121,-795.76632662,0.00014685,2]
[400439916,1767554761155,-795.76632662,0.00014685,2]
[400439917,1767554761185,-195.0,0.00014686,2]
[400439918,1767554761215,-250.0,0.00014686,2]
[400439919,1767554761243,-926.20685708,0.00014686,2]
[400439920,1767554761273,-150.99,0.00014686,2]
[400439921,1767554761300,-89.49567288,0.00014686,2]
[400439922,1767554761594,-9.51432712,0.00014686,2]
[400439923,1767554761608,-150.99,0.00014686,2]
[400439924,1767554761623,-249.99,0.00014686,2]
[400439925,1767554761633,-250.0,0.00014686,2]
[400439926,1767554764513,300.0,0.00011,2]
[400439928,1767554775643,-10000.01,0.00014521,2]
[400439929,1767554775819,-10000.01,0.00014521,2]
[400439930,1767554776020,-218.61,0.00014521,2]
[400439931,1767554776051,-300.0,0.00014684,2]
[400439932,1767554776103,-8962.79,0.00014686,2]
[400439933,1767554776240,-10000.01,0.00014686,2]
[400439934,1767554776599,246.43,0.00014285,2]
[400439935,1767554776636,-10000.01,0.00014686,2]
[400439936,1767554776669,-147.66,0.00014686,2]
[400439937,1767554776699,-1196.66,0.00014686,2]
[400439938,1767554776729,-1813.15403843,0.00014686,2]
[400439939,1767554776778,-3685.06192314,0.00014686,2]
[400439940,1767554776841,-1195.8,0.00014686,2]
[400439941,1767554776871,-2094.08,0.00014686,2]
[400439942,1767554776901,-216.91,0.00014686,2]
[400439943,1767554776957,-2986.43,0.00014686,2]
[400439946,1767554785100,-197.8955716,0.00014686,2]
[400439947,1767554785130,-200.63947991,0.00014686,2]
[400439948,1767554785161,-4314.3299,0.00014767,2]
[400439949,1767554785240,-574.28009698,0.00014775,2]
[400439950,1767554795221,-1134.746718,0.00014701,2]
[400439951,1767554795265,-7730.516564,0.00014775,2]
[400439952,1767554795677,-4395.39275992,0.00014775,2]
[400439953,1767554795709,-161.32,0.00014775,2]
[400439954,1767554795779,-886.58448016,0.00014775,2]
[400439955,1767554795900,-485.98651984,0.00014775,2]
[400439956,1767554795931,-151.0,0.00014777,2]
[400439957,1767554795965,-151.0,0.00014777,2]
[400439958,1767554795998,-151.0,0.00014777,2]
[400439959,1767554796029,-151.0,0.00014777,2]
[400439960,1767554796058,-151.0,0.00014777,2]
[400439961,1767554796091,-151.0,0.00014777,2]
[400439962,1767554796119,-151.0,0.00014777,2]
[400439964,1767554796148,-151.0,0.00014777,2]
[400439965,1767554796177,-500.0,0.00014777,2]
[400439966,1767554796206,-574.53293529,0.00014784,2]
[400439967,1767554796236,-345.38666613,0.00014784,2]
[400439968,1767554796267,-500.0,0.00014784,2]
[400439969,1767554796301,-344.34033541,0.00014784,2]
[400439970,1767554796331,-500.0,0.00014784,2]
[400439971,1767554796361,-500.0,0.00014784,2]
[400439972,1767554796544,-311.06691741,0.00014784,2]
[400439973,1767554796574,-500.0,0.00014785,2]
[400439974,1767554796602,-500.0,0.00014785,2]
[400439975,1767554796631,-500.0,0.00014785,2]
[400439976,1767554796662,-500.0,0.00014785,2]
[400439977,1767554796690,-500.0,0.00014785,2]
[400439978,1767554796718,-500.0,0.00014785,2]
[400439979,1767554796747,-500.0,0.00014785,2]
[400439980,1767554796776,-414.08933578,0.00014785,2]
[400439981,1767554796804,-36.19749362,0.00014785,2]
[400439982,1767554796927,-1477.30250638,0.00014785,2]
[400439983,1767554796961,-500.0,0.00014785,2]
[400439984,1767554796991,-500.0,0.00014785,2]
[400439985,1767554797023,-500.0,0.00014785,2]
[400439986,1767554797052,-500.0,0.00014785,2]
[400439987,1767554797080,-500.0,0.00014785,2]
[400439988,1767554797110,-500.0,0.00014785,2]
[400439989,1767554797139,-500.0,0.00014785,2]
[400439990,1767554797379,-500.0,0.00014785,2]
[400439991,1767554797409,-500.0,0.00014785,2]
[400439992,1767554797437,-500.0,0.00014785,2]
[400439993,1767554797465,-500.0,0.00014785,2]
[400439994,1767554797494,-500.0,0.00014785,2]
[400439995,1767554797523,-500.0,0.00014785,2]
[400439996,1767554797553,-500.0,0.00014785,2]
[400439997,1767554797581,-500.0,0.00014785,2]
[400439998,1767554797797,-500.0,0.00014785,2]
[400439999,1767554797827,-500.0,0.00014785,2]
[400440000,1767554797966,-500.0,0.00014785,2]
[400440001,1767554797997,-500.0,0.00014785,2]
[400440002,1767554798027,-500.0,0.00014785,2]
[400440003,1767554798568,-128.9220739,0.00014785,2]
[400440004,1767554798585,-0.01,0.00014785,2]
[400440005,1767554798604,-500.0,0.00014785,2]
[400440006,1767554798626,-500.0,0.00014785,2]
[400440007,1767554798641,-500.0,0.00014785,2]
[400440008,1767554798659,-7000.01,0.00014785,2]
[400440009,1767554801127,-1371.0479261,0.00014785,2]
[400440010,1767554801147,-150.99,0.00014785,2]
[400440011,1767554801166,-2015.54262549,0.00014785,2]
[400440012,1767554805275,-10000.01,0.00014785,2]
[400440013,1767554805609,-10000.01,0.00014785,2]
[400440014,1767554805814,-10000.01,0.00014785,2]
[400440015,1767554807020,920.85260779,0.00013443,2]
[400440019,1767554818294,-537.01961195,0.00014784,2]
[400440020,1767554818322,-176.9495537,0.00014784,2]
[400440021,1767554818369,-8572.0716687,0.00014785,2]
[400440022,1767554820121,-10000.01,0.00014785,2]
[400440023,1767554821936,-300.0,0.00014784,2]
[400440024,1767554821968,-150.0,0.00014784,2]
[400440025,1767554822015,-9100.01,0.00014785,2]
[400440027,1767554831760,-200.63947991,0.00014686,2]
[400440028,1767554831798,-9598.73104018,0.00014785,2]
[400440029,1767554832164,-10000.01,0.00014785,2]
[400440030,1767554832353,-10000.01,0.00014785,2]
[400440031,1767554833042,3019.78781186,0.0001305,2]
[400440032,1767554833067,763.62827323,0.0001305,2]
[400440033,1767554833438,259.34857628,0.000101,2]
[400440035,1767554841830,-4609.16533437,0.00014785,2]
[400440036,1767554841853,-781.67933126,0.00014785,2]
[400440037,1767554842052,-999.99,0.00014785,2]
[400440038,1767554842086,-8000.03,0.00014785,2]
[400440039,1767554846750,-9.92,0.00014785,2]
[400440040,1767554846774,-9980.17,0.00014785,2]
[400440041,1767554846867,-2563.71,0.00014785,2]
[400440042,1767554847152,-4872.59,0.00014785,2]
[400440043,1767554847189,-4872.61,0.00014785,2]
[400440044,1767554847228,-254.79,0.00014785,2]
[400440045,1767554847283,-254.79,0.00014785,2]
[400440046,1767554847298,-9490.43,0.00014785,2]
[400440047,1767554847312,-10000.01,0.00014785,2]
[400440048,1767554848781,-367.02,0.00014785,2]
[400440049,1767554848806,-9265.97,0.00014785,2]
[400440050,1767554849003,-500.0,0.00014785,2]
[400440051,1767554849034,-521.79707619,0.00014785,2]
[400440052,1767554849063,-500.0,0.00014785,2]
[400440053,1767554849094,-296.93519622,0.00014785,2]
[400440054,1767554849122,-500.0,0.00014785,2]
[400440055,1767554849150,-500.0,0.00014785,2]
[400440056,1767554849178,-500.0,0.00014785,2]
[400440057,1767554849300,-3362.54545518,0.00014786,2]
[400440060,1767554864873,-500.0,0.00014785,2]
[400440061,1767554864903,-500.0,0.00014785,2]
[400440062,1767554864933,-500.0,0.00014785,2]
[400440063,1767554864998,-7000.01,0.00014786,2]
[400440064,1767554865078,-10000.01,0.00014786,2]
[400440065,1767554865256,-10000.01,0.00014786,2]
[400440066,1767554869989,1463.41047713,0.00032,120]
[400440067,1767554870086,998.13686081,0.00014,2]
[400440070,1767554878549,-10000.01,0.00014786,2]
[400440071,1767554878773,-10000.01,0.00014786,2]
[400440072,1767554878960,-10000.01,0.00014786,2]
[400440073,1767554879158,-10000.01,0.00014786,2]
[400440074,1767554879321,-10000.01,0.00014786,2]
[400440075,1767554879481,-10000.01,0.00014786,2]
[400440076,1767554879871,-10000.01,0.00014786,2]
[400440077,1767554879886,-10000.01,0.00014786,2]
[400440078,1767554880033,-10000.01,0.00014786,2]
[400440081,1767554894643,1927.91000596,0.0001,2]
[400440083,1767554896626,390.76805178,7.888e-05,2]
[400440084,1767554898714,-998.13686081,0.0001439,2]
[400440085,1767554898742,-8003.73627838,0.0001439,2]
[400440086,1767554898904,-1200.0,0.00014685,2]
[400440087,1767554898956,-7600.01,0.00014686,2]
[400440088,1767554899082,-4311.52817845,0.00014686,2]
[400440089,1767554899126,-1376.9536431,0.00014718,2]
[400440090,1767554899270,-223.0463569,0.00014718,2]
[400440091,1767554899305,-500.0,0.00014785,2]
[400440092,1767554899341,-500.0,0.00014785,2]
[400440093,1767554899376,-468.04981383,0.00014785,2]
[400440096,1767554901889,150.0,0.00014618,2]
[400440098,1767554908552,-9850.01,0.00014786,2]
[400440100,1767554908935,-10000.01,0.00014786,2]
[400440101,1767554909091,267.77393416,0.000107,2]
[400440102,1767554909125,-9732.23606584,0.00014786,2]
[400440107,1767554918725,-297.18,0.00014585,2]
[400440108,1767554918758,-241.77066629,0.00014785,2]
[400440109,1767554918788,-500.0,0.00014785,2]
[400440110,1767554918818,-402.17305471,0.00014785,2]
[400440111,1767554918850,-241.03823479,0.00014785,2]
[400440112,1767554918882,-500.0,0.00014785,2]
[400440113,1767554918913,-267.74684219,0.00014785,2]
[400440114,1767554919051,-5100.19240404,0.00014786,2]
[400440115,1767554919065,-10000.01,0.00014786,2]
[400440116,1767554919094,-10000.01,0.00014786,2]
[400440123,1767554935904,-2834.575096,0.00014627,2]
[400440124,1767554935934,-194.25195309,0.00014686,2]
[400440125,1767554935963,-219.17,0.00014701,2]
[400440126,1767554936027,-3504.01590182,0.00014786,2]
[400440127,1767554948076,171.0,9e-07,2]
[400440129,1767555001179,300.0,0.00014584,2]
[400440130,1767555001539,1200.0,0.00014584,2]
[400440131,1767555001887,150.0,0.00014584,2]
[400440132,1767555031410,227.03261369,0.00014584,2]
[400440133,1767555031454,500.0,0.00014584,2]
[400440134,1767555031496,337.69976091,0.00014584,2]
[400440135,1767555031565,230.21641874,0.00014584,2]
[400440136,1767555031720,628.39016297,0.00014584,2]
[400440147,1767555032373,-2488.79487899,0.00014585,2]
[400440148,1767555032386,-305.85181942,0.00014585,2]
[400440149,1767555032398,-44857.36194866,0.00014585,2]
[400440150,1767555032411,-1872.07752206,0.00014585,2]
[400440151,1767555032424,-6916.88431535,0.00014585,2]
[400440152,1767555032436,-646.95932909,0.00014585,2]
[400440153,1767555032449,-300.0,0.00014585,2]
[400440154,1767555032462,-2602.86816267,0.00014585,2]
[400440155,1767555032474,-1377.93241419,0.00014585,2]
[400440156,1767555032486,-1060.92531021,0.00014585,2]
[400440157,1767555032502,-999.0,0.00014585,2]
[400440159,1767555032514,-4910.06818058,0.00014585,2]
[400440161,1767555032526,-2519.10982703,0.00014585,2]
[400440163,1767555032538,-487.0242411,0.00014585,2]
[400440165,1767555032550,-665.86849656,0.00014585,2]
[400440168,1767555032566,-449.6702639,0.00014585,2]
[400440170,1767555032578,-8960.0,0.00014585,2]
[400440172,1767555032590,-4448.81383102,0.00014585,2]
[400440477,1767555038423,-1409.95247366,0.00014585,2]
[400440478,1767555038478,-401.616215,0.00014585,2]
[400440479,1767555038540,-558.38385669,0.00014585,2]
[400440480,1767555038606,-432.46183533,0.00014585,2]
[400440481,1767555038716,-2832.97410364,0.00014585,2]
[400440485,1767555040356,-1086.01447699,0.00014585,2]
[400440486,1767555040368,-1287.24000015,0.00014585,2]
[400440487,1767555040379,-772.78123935,0.00014585,2]
[400440488,1767555040391,-404.46061842,0.00014585,2]
[400440489,1767555040402,-12352.48719142,0.00014585,2]
[400440490,1767555040413,-505085.30063207,0.00014585,2]
[400440491,1767555040437,-21671.38810378,0.00014585,2]
[400440492,1767555040540,-2726.39013377,0.00014585,2]
[400440493,1767555040552,-1790.09687237,0.00014585,2]
[400440494,1767555040581,-138598.33714304,0.00014585,2]
[400440495,1767555040594,-26128.08776326,0.00014585,2]
[400440496,1767555040636,-959.79,0.00014585,2]
[400440497,1767555040745,-195633.02680023,0.00014585,2]
[400440499,1767555040756,-1000.0,0.00014785,2]
[400440500,1767555040767,-1000.0,0.00014786,2]
[400440501,1767555040776,-6506.3503,0.00014786,2]
[400440502,1767555040786,-500.0,0.00014885,2]
[400440503,1767555040796,-500.0,0.00014885,2]
[400440504,1767555040806,-500.0,0.00014885,2]
[400440505,1767555040815,-500.0,0.00014885,2]
[400440506,1767555040824,-500.0,0.00014885,2]
[400440508,1767555040833,-205.65100729,0.000149,2]
[400440510,1767555040842,-3298.88448174,0.00014999,2]
[400440512,1767555040851,-2044.28228607,0.00015,2]
[400440513,1767555040860,-5941.81705286,0.00015,2]
[400440515,1767555040869,-401.20446721,0.00015,2]
[400440517,1767555040879,-11911.53817844,0.00015043,2]
[400440519,1767555040888,-1513.5,0.00015059,2]
[400440521,1767555040898,-1500.0,0.00015062,2]
[400440524,1767555040907,-40672.52655228,0.00015089,2]
[400440526,1767555040916,-194.25195306,0.00015145,2]
[400440528,1767555040925,-207.19077534,0.00015189,3]
[400440530,1767555040935,-438.09983536,0.000153,2]
[400440532,1767555040944,-500.0,0.00015309,2]
[400440535,1767555040954,-1513.5,0.00015333,2]
[400440537,1767555040963,-500.0,0.00015372,2]
[400440538,1767555040972,-500.0,0.00015372,2]
[400440540,1767555040982,-500.0,0.00015373,2]
[400440542,1767555040991,-173.10799489,0.00015373,2]
[400440544,1767555041000,-161.8055952,0.00015373,2]
[400440546,1767555041009,-500.0,0.00015373,2]
[400440547,1767555041019,-500.0,0.00015373,2]
[400440548,1767555041029,-500.0,0.00015373,2]
[400440549,1767555041042,-500.0,0.00015373,2]
[400440550,1767555041051,-563.66853913,0.00015373,2]
[400440551,1767555041060,-167.44841446,0.00015373,2]
[400440552,1767555041070,-501.07232702,0.00015373,2]
[400440553,1767555041080,-172.94090925,0.00015373,2]
[400440554,1767555041089,-500.93407438,0.00015373,2]
[400440555,1767555041099,-500.0,0.00015373,2]
[400440556,1767555041109,-165.84262506,0.00015373,2]
[400440557,1767555041119,-164.04270598,0.00015373,2]
[400440558,1767555041128,-500.0,0.00015373,2]
[400440559,1767555041137,-500.0,0.00015373,2]
[400440560,1767555041147,-500.0,0.00015373,2]
[400440561,1767555041157,-500.0,0.00015373,2]
[400440562,1767555041166,-163.4270829,0.00015373,2]
[400440563,1767555041176,-500.0,0.00015373,2]
[400440564,1767555041186,-500.0,0.00015373,2]
[400440565,1767555041195,-177.01594385,0.00015373,2]
[400440566,1767555041204,-500.0,0.00015373,2]
[400440567,1767555041214,-500.9351107,0.00015373,2]
[400440568,1767555041223,-500.0,0.00015373,2]
[400440569,1767555041232,-500.0,0.00015373,2]
[400440570,1767555041241,-500.0,0.00015373,2]
[400440571,1767555041250,-500.0,0.00015373,2]
[400440572,1767555041260,-500.0,0.00015373,2]
[400440573,1767555041269,-500.79042778,0.00015373,2]
[400440574,1767555041278,-500.0,0.00015373,2]
[400440575,1767555041287,-500.0,0.00015373,2]
[400440576,1767555041296,-500.0,0.00015373,2]
[400440577,1767555041305,-500.0,0.00015373,2]
[400440578,1767555041315,-500.0,0.00015373,2]
[400440579,1767555041324,-500.65099109,0.00015373,2]
[400440580,1767555041334,-500.0,0.00015373,2]
[400440581,1767555041343,-501.3047021,0.00015373,2]
[400440582,1767555041352,-500.0,0.00015373,2]
[400440583,1767555041361,-216.79325996,0.00015373,2]
[400440584,1767555041371,-316.16920901,0.00015373,2]
[400440585,1767555041380,-500.0,0.00015373,2]
[400440586,1767555041389,-500.0,0.00015373,2]
[400440587,1767555041399,-500.0,0.00015373,2]
[400440588,1767555041408,-165.62195254,0.00015373,2]
[400440589,1767555041417,-500.0,0.00015373,2]
[400440590,1767555041426,-500.0,0.00015373,2]
[400440591,1767555041435,-500.0,0.00015373,2]
[400440592,1767555041444,-165.75698725,0.00015373,2]
[400440593,1767555041453,-500.0,0.00015373,2]
[400440594,1767555041463,-500.0,0.00015373,2]
[400440595,1767555041471,-11911.53817844,0.000154,2]
[400440596,1767555041480,-1100.0,0.00015552,2]
[400440597,1767555041490,-244.58233633,0.00015577,2]
[400440598,1767555041499,-194.25195306,0.00015604,2]
[400440599,1767555041508,-1513.5,0.00015607,2]
[400440600,1767555041517,-7178.13705646,0.0001564,2]
[400440601,1767555041528,-500.0,0.00015647,2]
[400440602,1767555041537,-250.0,0.00015649,2]
[400440603,1767555041545,-255.0,0.00015707,2]
[400440604,1767555041555,-587.78741227,0.00015721,2]
[400440605,1767555041564,-11911.53817844,0.00015757,2]
[400440606,1767555041574,-250.0,0.00015829,2]
[400440607,1767555041583,-1513.5,0.00015881,2]
[400440608,1767555041592,-500.0,0.0001592,2]
[400440609,1767555041602,-500.0,0.0001592,2]
[400440610,1767555041611,-500.0,0.0001592,2]
[400440611,1767555041621,-500.0,0.0001592,2]
[400440612,1767555041630,-500.0,0.0001592,2]
[400440613,1767555041640,-500.0,0.0001592,2]
[400440614,1767555041649,-500.0,0.0001592,2]
[400440615,1767555041659,-500.0,0.0001592,2]
[400440616,1767555041668,-500.0,0.00015921,2]
[400440617,1767555041678,-1000.0,0.00015921,2]
[400440618,1767555041687,-1000.0,0.00015921,2]
[400440619,1767555041696,-224.11556255,0.00015921,2]
[400440620,1767555041706,-277.79177632,0.00015921,2]
[400440621,1767555041715,-1000.0,0.00015921,2]
[400440622,1767555041724,-969.88876861,0.00015921,2]
[400440623,1767555041733,-1000.0,0.00015921,2]
[400440624,1767555041743,-1000.0,0.00015921,2]
[400440625,1767555041751,-1000.0,0.00015921,2]
[400440626,1767555041760,-1000.0,0.00015921,2]
[400440627,1767555041769,-1000.0,0.00015921,2]
[400440628,1767555041778,-1000.0,0.00015921,2]
[400440629,1767555041787,-552.06846713,0.00015921,2]
[400440630,1767555041796,-1000.0,0.00015921,2]
[400440631,1767555041805,-1000.0,0.00015921,2]
[400440632,1767555041814,-1000.0,0.00015921,2]
[400440633,1767555041823,-1000.0,0.00015921,2]
[400440634,1767555041833,-1000.0,0.00015921,2]
[400440635,1767555041842,-822.40241521,0.00015921,2]
[400440636,1767555041851,-402.58602431,0.00015921,2]
[400440637,1767555041860,-1000.0,0.00015921,2]
[400440638,1767555041870,-1000.0,0.00015921,2]
[400440639,1767555041879,-1006.76212888,0.00015921,2]
[400440640,1767555041890,-1000.0,0.00015921,2]
[400440641,1767555041899,-502.24390153,0.00015921,2]
[400440642,1767555041909,-1000.0,0.00015921,2]
[400440643,1767555041919,-1000.0,0.00015921,2]
[400440644,1767555041928,-1000.0,0.00015921,2]
[400440645,1767555041937,-1000.0,0.00015921,2]
[400440646,1767555041948,-502.37793469,0.00015921,2]
[400440647,1767555041960,-1131.92218996,0.00015921,2]
[400440648,1767555041969,-310.57231223,0.00015921,2]
[400440649,1767555041978,-1498.16710801,0.00015942,2]
[400440650,1767555041988,-420.0,0.00015968,2]
[400440651,1767555041998,-500.0,0.00015972,2]
[400440652,1767555042008,-162.39049405,0.00015973,2]
[400440653,1767555042018,-500.33097651,0.00015973,2]
[400440654,1767555042027,-500.0,0.00015973,2]
[400440655,1767555042042,-500.0,0.00015973,2]
[400440656,1767555042051,-571.49254252,0.00015973,2]
[400440657,1767555042060,-500.0,0.00015973,2]
[400440658,1767555042070,-500.0,0.00015973,2]
[400440659,1767555042081,-500.0,0.00015973,2]
[400440660,1767555042090,-162.60748848,0.00015973,2]
[400440661,1767555042099,-500.0,0.00015973,2]
[400440662,1767555042110,-162.71793463,0.00015973,2]
[400440663,1767555042119,-500.0,0.00015973,2]
[400440664,1767555042128,-500.0,0.00015973,2]
[400440665,1767555042138,-500.0,0.00015973,2]
[400440666,1767555042147,-500.0,0.00015973,2]
[400440667,1767555042156,-500.0,0.00015973,2]
[400440668,1767555042166,-557.14178352,0.00015973,2]
[400440669,1767555042175,-501.32441659,0.00015973,2]
[400440670,1767555042185,-519.94704597,0.00015973,2]
[400440671,1767555042194,-500.0,0.00015973,2]
[400440672,1767555042204,-500.0,0.00015973,2]
[400440673,1767555042213,-335.30855068,0.00015973,2]
[400440674,1767555042223,-500.0,0.00015973,2]
[400440675,1767555042233,-500.0,0.00015973,2]
[400440676,1767555042242,-500.0,0.00015973,2]
[400440677,1767555042252,-500.0,0.00015973,2]
[400440678,1767555042262,-640.75623125,0.00015973,2]
[400440679,1767555042273,-500.0,0.00015973,2]
[400440680,1767555042282,-510.53211563,0.00015973,2]
[400440681,1767555042292,-500.0,0.00015973,2]
[400440682,1767555042302,-156.8618217,0.00015973,2]
[400440683,1767555042312,-500.0,0.00015973,2]
[400440684,1767555042322,-500.0,0.00015973,2]
[400440685,1767555042331,-500.0,0.00015973,2]
[400440686,1767555042341,-500.0,0.00015973,2]
[400440687,1767555042351,-500.0,0.00015973,2]
[400440688,1767555042362,-500.0,0.00015973,2]
[400440689,1767555042371,-500.0,0.00015973,2]
[400440690,1767555042382,-500.0,0.00015973,2]
[400440691,1767555042392,-500.0,0.00015973,2]
[400440692,1767555042402,-500.0,0.00015973,2]
[400440693,1767555042412,-500.0,0.00015973,2]
[400440694,1767555042422,-500.80153356,0.00015973,2]
[400440695,1767555042431,-500.0,0.00015973,2]
[400440696,1767555042440,-500.0,0.00015973,2]
[400440697,1767555042450,-178.11764647,0.00015973,2]
[400440698,1767555042460,-427.65194977,0.00015973,2]
[400440699,1767555042469,-500.0,0.00015973,2]
[400440700,1767555042479,-500.0,0.00015973,2]
[400440701,1767555042488,-500.0,0.00015973,2]
[400440702,1767555042498,-500.0,0.00015973,2]
[400440703,1767555042507,-500.0,0.00015973,2]
[400440704,1767555042517,-168.94981605,0.00015973,2]
[400440705,1767555042526,-160.51486392,0.00015973,2]
[400440706,1767555042535,-500.0,0.00015973,2]
[400440707,1767555042544,-500.0,0.00015973,2]
[400440708,1767555042554,-500.0,0.00015973,2]
[400440709,1767555042563,-500.0,0.00015973,2]
[400440710,1767555042572,-500.0,0.00015973,2]
[400440711,1767555042581,-500.0,0.00015973,2]
[400440712,1767555042591,-161.9533546,0.00015973,2]
[400440713,1767555042600,-500.0,0.00015973,2]
[400440714,1767555042609,-164.04019857,0.00015973,2]
[400440715,1767555042619,-283.16984364,0.00015973,2]
[400440716,1767555042629,-524.10882294,0.00015973,2]
[400440717,1767555042638,-307.90616276,0.00015973,2]
[400440718,1767555042648,-375.1471696,0.00015973,2]
[400440719,1767555042657,-500.0,0.00015973,2]
[400440720,1767555042667,-500.0,0.00015973,2]
[400440721,1767555042677,-500.0,0.00015973,2]
[400440722,1767555042686,-500.0,0.00015973,2]
[400440723,1767555042695,-207.91178514,0.00015973,2]
[400440724,1767555042705,-507.25971668,0.00015973,2]
[400440725,1767555042714,-161.42265467,0.00015973,2]
[400440726,1767555042724,-500.0,0.00015973,2]
[400440727,1767555042733,-500.0,0.00015973,2]
[400440728,1767555042743,-531.13668623,0.00015973,2]
[400440729,1767555042752,-500.0,0.00015973,2]
[400440730,1767555042762,-500.0,0.00015973,2]
[400440731,1767555042771,-510.20909915,0.00015973,2]
[400440732,1767555042781,-500.0,0.00015973,2]
[400440733,1767555042790,-165.17063787,0.00015973,2]
[400440734,1767555042801,-469.53903087,0.00015973,2]
[400440735,1767555042810,-167.27117192,0.00015973,2]
[400440736,1767555042819,-500.0,0.00015973,2]
[400440737,1767555042829,-500.0,0.00015973,2]
[400440738,1767555042838,-500.0,0.00015973,2]
[400440739,1767555042848,-220.73919523,0.00015973,2]
[400440740,1767555042857,-484.01781712,0.00015973,2]
[400440741,1767555042867,-3269907.58589862,0.00016,4]
[400440742,1767555042877,-323.59,0.00016014,2]
[400440743,1767555042886,-1680.0,0.00016042,2]
[400440744,1767555042896,-250.0,0.00016043,2]
[400440745,1767555042906,-500.0,0.00016061,2]
[400440746,1767555042916,-500.0,0.00016061,2]
[400440747,1767555042926,-500.0,0.00016061,2]
[400440748,1767555042935,-500.0,0.00016061,2]
[400440749,1767555042945,-500.0,0.00016061,2]
[400440750,1767555042955,-500.0,0.00016061,2]
[400440751,1767555042965,-354.11325635,0.00016061,2]
[400440752,1767555042974,-637.77412111,0.00016061,2]
[400440753,1767555042984,-194.25195306,0.00016063,2]
[400440754,1767555042993,-480.0,0.00016077,2]
[400440755,1767555043003,-11911.53817844,0.00016114,2]
[400440756,1767555043012,-500.0,0.00016115,2]
[400440757,1767555043022,-9999.99,0.00016116,2]
[400440758,1767555043032,-300.0,0.00016152,2]
[400440759,1767555043043,-195.0,0.00016152,2]
[400440760,1767555043052,-193.0,0.00016152,2]
[400440761,1767555043062,-2500.0,0.00016152,2]
[400440762,1767555043072,-300.0,0.00016152,2]
[400440764,1767555043082,-195.0,0.00016154,2]
[400440765,1767555043091,-250.0,0.00016154,2]
[400440766,1767555043101,-1513.5,0.00016155,2]
[400440768,1767555043113,-500.0,0.00016195,2]
[400440772,1767555043123,-335.69,0.00016213,2]
[400440773,1767555043290,-195.0,0.00016265,2]
[400440774,1767555043300,-1000.0,0.00016338,2]
[400440775,1767555043310,-530.0,0.00016356,2]